bitfinex/quotes_ETHUSD_20241101
["timestamp","ask_amount","ask_price","bid_price","bid_amount"]
[1730482081153,3.95917,2525.8,2525.4,0.55]
[1730482081604,3.9593,2525.7,2525.4,0.55]
[1730482082042,3.9593,2525.7,2525.6,0.55]
[1730482082818,7.91817,2525.9,2525.6,0.55]
[1730482083019,3.95907,2525.9,2525.6,0.55]
[1730482083858,3.95865,2526.2,2525.6,0.55]
[1730482084009,3.95864,2526.2,2525.8,1.3586]
[1730482084215,3.9589,2526.0,2525.8,0.55]
[1730482084546,3.95898,2525.9,2525.6,0.55]
[1730482084752,3.95898,2525.9,2525.6,1.081836]
[1730482084959,3.95914,2525.8,2525.6,1.081836]
[1730482085253,3.95898,2525.9,2525.6,1.081836]
[1730482087135,3.9592,2525.8,2525.6,0.55]
[1730482088229,3.95886,2526.0,2525.6,0.55]
[1730482088430,3.959,2525.9,2525.6,0.55]
[1730482088631,3.95916,2525.8,2525.6,0.55]
[1730482090748,3.95914,2525.8,2525.6,0.55]
[1730482090955,3.95905,2525.9,2525.6,0.55]
[1730482091118,3.95905,2525.9,2525.6,1.477793]
[1730482091319,3.95917,2525.8,2525.6,1.477793]
[1730482091860,0.7708,2526.1,2525.2,0.8022]
[1730482091861,3.95954,2525.6,2525.2,0.8022]
[1730482092012,3.95927,2525.8,2525.2,0.8022]
[1730482092357,3.9589,2526.0,2525.6,4.76162]
[1730482092653,3.95905,2525.9,2525.6,0.8022]
[1730482092841,3.95869,2526.1,2525.6,4.76162]
[1730482093025,3.95902,2525.9,2525.7,0.55]
[1730482093224,3.95874,2526.1,2525.7,0.55]
[1730482093854,3.95867,2526.1,2525.4,0.8052]
[1730482094163,3.95961,2525.5,2524.8,19.77]
[1730482094321,3.95961,2525.5,2525.0,3.96036]
[1730482094520,3.0,2525.7,2524.9,0.8052]
[1730482094715,3.95961,2525.5,2524.9,0.8052]
[1730482094940,3.96025,2525.1,2524.9,0.8052]
[1730482095340,3.95948,2525.6,2524.9,0.8052]
[1730482095341,3.9601,2525.2,2524.9,0.8052]
[1730482095541,3.95993,2525.3,2524.9,0.8052]
[1730482095717,7.91995,2525.3,2524.9,0.8052]
[1730482095919,3.95945,2525.6,2524.9,0.8052]
[1730482096120,3.96025,2525.1,2524.9,0.8052]
[1730482096342,3.95998,2525.3,2524.9,0.8052]
[1730482096844,3.9601,2525.2,2524.9,0.8052]
[1730482097045,3.96031,2525.1,2525.0,0.55]
[1730482097419,0.7919,2525.5,2525.0,0.55]
[1730482097617,3.95994,2525.3,2525.0,0.55]
[1730482098271,7.91995,2525.3,2525.0,0.55]
[1730482098434,3.95994,2525.3,2525.0,0.55]
[1730482098633,3.0,2525.6,2525.0,1.081578]
[1730482098968,0.7919,2525.7,2525.0,5.041958]
[1730482098969,3.95984,2525.4,2525.0,5.041958]
[1730482099578,3.95946,2525.6,2525.2,0.55]
[1730482099748,3.95946,2525.6,2525.3,0.8293]
[1730482099749,7.919,2525.6,2525.3,0.8293]
[1730482100251,3.95946,2525.6,2525.3,0.8293]
[1730482100769,7.91904,2525.6,2525.3,1.363246]
[1730482100945,3.95946,2525.6,2525.3,1.363246]
[1730482101477,3.95925,2525.8,2525.3,1.363246]
[1730482101768,3.95949,2525.6,2525.4,0.55]
[1730482105442,3.95902,2525.9,2525.4,0.55]
[1730482105644,3.95952,2525.6,2525.4,0.55]
[1730482106473,0.7928,2525.6,2525.0,0.8126]
[1730482106679,3.96023,2525.1,2524.6,4.78069]
[1730482106889,3.96023,2525.1,2524.7,3.96084]
[1730482107049,3.96023,2525.1,2524.7,0.88009431]
[1730482107383,3.96023,2525.1,2524.8,2.05467254]
[1730482107384,3.96041,2525.0,2524.8,2.05467254]
[1730482107589,3.96023,2525.1,2524.6,0.8198]
[1730482107590,3.96076,2524.8,2524.6,0.8198]
[1730482107740,3.96102,2524.6,2524.5,0.05941308]
[1730482108244,4.74042,2524.6,2524.5,0.05941308]
[1730482108772,6.96149,2524.3,2524.2,0.06884334]
[1730482108977,3.96198,2524.0,2523.6,0.8198]
[1730482109462,3.96225,2523.9,2523.6,0.8198]
[1730482110269,3.96235,2523.8,2523.3,0.8198]
[1730482110476,0.7794,2524.0,2523.3,0.8198]
[1730482110477,3.96254,2523.7,2523.3,0.8198]
[1730482110685,3.96272,2523.6,2523.3,0.8198]
[1730482111155,3.96254,2523.7,2523.3,0.8198]
[1730482111354,3.96254,2523.7,2523.2,3.96321]
[1730482111355,6.96227,2523.8,2523.0,0.8198]
[1730482111553,7.92605,2523.4,2523.0,0.8198]
[1730482111993,3.96307,2523.3,2523.0,1.298138]
[1730482112185,3.96327,2523.2,2523.0,1.298138]
[1730482112348,3.96307,2523.3,2523.0,0.8198]
[1730482113507,3.96292,2523.4,2523.0,0.8198]
[1730482113970,3.9631,2523.3,2523.1,0.55]
[1730482114485,3.96322,2523.2,2523.1,0.55]
[1730482114690,3.96307,2523.3,2522.9,0.55]
[1730482114885,3.96307,2523.3,2522.9,1.475848]
[1730482115577,3.9629,2523.4,2522.9,5.439498]
[1730482115766,3.96318,2523.3,2522.9,1.475848]
[1730482116102,3.96324,2523.2,2522.9,1.475848]
[1730482116695,3.96318,2523.3,2522.9,1.475848]
[1730482117052,7.92638,2523.3,2522.9,0.55]
[1730482117203,3.96318,2523.3,2522.9,0.55]
[1730482117904,3.96318,2523.3,2522.8,0.55]
[1730482117905,3.96329,2523.2,2522.8,0.55]
[1730482118667,3.96306,2523.3,2522.8,4.51382]
[1730482118878,3.96324,2523.2,2522.8,4.51382]
[1730482119174,3.96324,2523.2,2522.8,1.475866]
[1730482119779,3.96306,2523.3,2522.8,5.439686]
[1730482120207,3.96322,2523.2,2522.8,1.475866]
[1730482120510,3.96306,2523.3,2522.8,5.439666]
[1730482120693,3.96292,2523.4,2522.9,3.96367]
[1730482120910,3.96292,2523.4,2523.0,0.55]
[1730482121218,3.96315,2523.3,2523.0,0.55]
[1730482121712,3.96292,2523.4,2523.0,0.55]
[1730482121713,3.96329,2523.2,2523.0,0.55]
[1730482121938,4.44698187,2523.6,2522.8,0.55]
[1730482122079,3.96365,2523.0,2522.8,0.55]
[1730482122418,3.50483915,2523.5,2522.8,4.51383]
[1730482122419,4.46770915,2523.5,2522.8,4.51383]
[1730482122620,3.96251,2523.7,2522.8,0.55]
[1730482122912,4.72078,2524.3,2523.3,0.7563]
[1730482123086,3.96165,2524.2,2523.7,0.55]
[1730482123726,3.96197,2524.0,2523.7,0.55]
[1730482124275,3.96197,2524.0,2523.5,4.51273]
[1730482124484,3.96197,2524.0,2523.7,0.55]
[1730482125217,3.96177,2524.2,2523.7,0.55]
[1730482125406,3.96204,2524.0,2523.7,0.55]
[1730482126103,3.96219,2523.9,2523.4,4.51283]
[1730482126415,3.96204,2524.0,2523.4,4.51283]
[1730482126624,3.96213,2523.9,2523.4,5.039743]
[1730482127489,3.96213,2523.9,2523.4,5.039713]
[1730482127828,3.96252,2523.7,2523.4,1.076913]
[1730482128186,3.96268,2523.6,2523.4,1.076913]
[1730482128388,3.96268,2523.6,2523.4,0.55]
[1730482129220,3.96325,2523.2,2523.0,0.8282]
[1730482129433,3.96337,2523.1,2522.8,1.24190748]
[1730482129719,3.96337,2523.1,2522.8,0.8282]
[1730482129720,3.96363,2523.0,2522.8,0.8282]
[1730482129936,3.96363,2523.0,2522.5,4.03306907]
[1730482129937,3.96369,2522.9,2522.5,0.88065907]
[1730482130084,3.96369,2522.9,2522.5,4.84495907]
[1730482130287,3.96354,2523.0,2522.5,9.69806304]
[1730482130521,3.96354,2523.0,2522.5,9.69799304]
[1730482130702,3.96344,2523.1,2522.5,1.76953304]
[1730482130910,3.96344,2523.1,2522.7,3.964]
[1730482131503,3.96344,2523.1,2522.8,0.55]
[1730482132064,3.96306,2523.3,2522.9,3.96358]
[1730482132228,7.92625,2523.3,2523.0,1.3618]
[1730482132415,3.96331,2523.2,2523.0,1.3618]
[1730482133526,3.0,2523.5,2522.8,0.55]
[1730482133694,3.96339,2523.1,2522.8,0.55]
[1730482134219,3.96354,2523.0,2522.8,0.55]
[1730482134424,3.96356,2523.0,2522.6,4.51415]
[1730482134625,3.96356,2523.0,2522.6,0.55]
[1730482136153,3.96333,2523.2,2522.6,0.55]
[1730482136360,3.9634,2523.1,2522.8,0.55]
[1730482136645,3.96314,2523.3,2522.8,4.51377]
[1730482138649,3.96314,2523.3,2522.8,0.55]
[1730482138954,3.96331,2523.2,2522.8,0.55]
[1730482139115,3.96326,2523.2,2522.8,4.5137]
[1730482139316,3.96326,2523.2,2523.0,0.55]
[1730482139565,3.96326,2523.2,2522.8,0.55]
[1730482140449,3.96322,2523.2,2522.8,0.55]
[1730482140651,3.96322,2523.2,2522.8,4.51374]
[1730482140857,3.96288,2523.5,2523.0,0.55]
[1730482141152,3.96344,2523.1,2522.9,0.7507]
[1730482141456,3.96373,2522.9,2522.6,0.7507]
[1730482141616,3.96353,2523.0,2522.6,0.7507]
[1730482141819,3.96308,2523.3,2522.6,0.7507]
[1730482142117,3.96392,2522.8,2522.6,0.7507]
[1730482142414,7.92671,2523.2,2522.7,3.96393]
[1730482142614,3.96334,2523.2,2522.7,3.96393]
[1730482143263,3.96334,2523.2,2522.8,4.51375]
[1730482143450,3.96304,2523.4,2523.0,1.331]
[1730482143762,7.92604,2523.4,2523.0,1.86839534]
[1730482143948,3.963,2523.4,2523.0,1.86839534]
[1730482144351,3.96319,2523.3,2523.0,1.331]
[1730482144528,7.92596,2523.4,2523.0,1.331]
[1730482144926,3.96313,2523.3,2523.0,1.331]
[1730482146962,3.96323,2523.2,2523.0,1.331]
[1730482147126,3.96309,2523.3,2523.0,1.331]
[1730482147528,3.96292,2523.4,2523.0,1.331]
[1730482147828,3.96292,2523.4,2523.0,2.256844]
[1730482148028,7.92594,2523.4,2523.0,2.256844]
[1730482148227,3.96292,2523.4,2523.0,6.220304]
[1730482149174,3.96272,2523.6,2523.0,2.256844]
[1730482149472,3.96272,2523.6,2523.2,4.51314]
[1730482150125,4.74488,2523.8,2523.1,3.96337]
[1730482150126,3.96322,2523.2,2523.1,0.55]
[1730482150565,3.96309,2523.3,2523.1,0.55]
[1730482150861,3.96322,2523.2,2523.1,0.55]
[1730482151229,3.96309,2523.3,2523.1,0.55]
[1730482151659,3.96262,2523.6,2523.0,0.781]
[1730482151860,3.96333,2523.2,2523.0,0.781]
[1730482152161,3.9629,2523.4,2523.0,0.781]
[1730482152162,3.96309,2523.3,2523.0,0.781]
[1730482152376,3.96323,2523.2,2523.0,0.781]
[1730482152834,3.96309,2523.3,2523.0,0.781]
[1730482153034,7.92626,2523.3,2523.0,0.781]
[1730482153227,3.96324,2523.2,2523.0,0.781]
[1730482153428,3.96375,2522.9,2522.5,0.8081]
[1730482153627,1.575133,2523.2,2522.5,0.8081]
[1730482153628,3.96393,2522.8,2522.5,0.8081]
[1730482153826,3.96404,2522.7,2522.5,0.8081]
[1730482154672,3.96416,2522.6,2522.3,0.05946462]
[1730482155225,3.96441,2522.5,2522.3,0.05946462]
[1730482155430,7.92887,2522.5,2522.3,0.05946462]
[1730482155656,0.7973,2522.8,2522.3,0.05946462]
[1730482155926,4.47468187,2522.8,2522.0,0.7617]
[1730482156152,3.96441,2522.5,2522.0,4.72678]
[1730482156346,3.96441,2522.5,2522.1,3.96494]
[1730482156561,3.96441,2522.5,2522.2,0.55]
[1730482156728,7.92884,2522.5,2522.2,0.55]
[1730482156924,7.92881,2522.5,2522.1,0.55]
[1730482157375,3.9644,2522.5,2522.1,0.55]
[1730482157570,3.96454,2522.4,2522.1,0.55]
[1730482157866,3.96439,2522.5,2522.1,0.55]
[1730482158037,7.92883,2522.5,2522.1,0.55]
[1730482158667,3.96439,2522.5,2522.1,0.55]
[1730482159170,7.92823,2522.7,2522.2,3.96471]
[1730482159325,3.96417,2522.6,2522.3,0.55]
[1730482159666,0.7973,2522.8,2522.4,0.8111]
[1730482159667,3.96394,2522.8,2522.4,0.8111]
[1730482159968,3.96405,2522.7,2522.4,0.8111]
[1730482161029,3.96386,2522.8,2522.4,0.8111]
[1730482161225,7.92779,2522.8,2522.4,0.8111]
[1730482161459,3.96386,2522.8,2522.5,0.55]
[1730482163272,3.96407,2522.7,2522.5,0.55]
[1730482163471,3.96407,2522.7,2522.4,0.8111]
[1730482163472,3.96409,2522.7,2522.4,0.8111]
[1730482163761,3.96422,2522.6,2522.2,1.3611]
[1730482163930,3.96443,2522.5,2522.2,1.3611]
[1730482164444,3.96455,2522.4,2522.2,1.3611]
[1730482164643,3.96455,2522.4,2522.1,0.55]
[1730482165874,3.96416,2522.6,2522.1,0.55]
[1730482166047,3.96373,2522.9,2522.4,3.96439]
[1730482166235,3.96373,2522.9,2522.5,0.55]
[1730482166430,3.96346,2523.1,2522.7,0.55]
[1730482166667,3.96361,2523.0,2522.7,0.55]
[1730482167169,3.9637,2522.9,2522.7,0.55]
[1730482167470,3.96361,2523.0,2522.7,1.081057]
[1730482168355,3.96361,2523.0,2522.7,0.55]
[1730482168740,3.8253,2523.3,2522.7,0.55]
[1730482168936,3.96384,2522.8,2522.7,0.55]
[1730482169265,3.96371,2522.9,2522.7,0.55]
[1730482171131,3.96351,2523.1,2522.7,0.55]
[1730482171376,3.96362,2523.0,2522.7,0.55]
[1730482171571,3.8253,2523.3,2522.7,1.081071]
[1730482171572,3.96331,2523.2,2522.7,1.081071]
[1730482171771,3.96331,2523.2,2522.9,0.55]
[1730482172075,3.96331,2523.2,2522.8,0.55]
[1730482172443,3.96331,2523.2,2522.9,0.55]
[1730482172643,7.92664,2523.2,2522.9,0.55]
[1730482172850,3.96338,2523.1,2522.7,4.51398]
[1730482173040,3.96338,2523.1,2522.7,5.441432]
[1730482174304,3.96339,2523.1,2522.7,5.441442]
[1730482174585,0.8198,2524.4,2523.4,0.7709]
[1730482174787,7.92307,2524.3,2523.7,3.96228]
[1730482174989,3.96168,2524.2,2523.8,0.55]
[1730482175285,3.9619,2524.1,2523.7,0.55]
[1730482175650,3.9619,2524.1,2523.6,3.96246]
[1730482175855,3.9619,2524.1,2523.7,0.55]
[1730482178457,3.9619,2524.1,2523.7,4.51241]
[1730482179562,3.96166,2524.2,2523.7,4.51241]
[1730482179892,3.96166,2524.2,2523.7,5.359897]
[1730482180892,3.96166,2524.2,2523.9,0.55]
[1730482183776,7.92346,2524.2,2523.9,0.55]
[1730482183958,3.96181,2524.1,2523.9,0.55]
[1730482184983,3.96166,2524.2,2523.9,0.55]
[1730482186267,7.92339,2524.2,2523.9,0.55]
[1730482186465,3.96206,2524.0,2523.6,0.7535]
[1730482186665,0.7863,2523.9,2523.3,0.7535]
[1730482186879,3.96255,2523.7,2523.3,0.7535]
[1730482187479,3.96261,2523.6,2523.3,0.7535]
[1730482188003,3.96261,2523.6,2523.4,0.55]
[1730482188166,3.96255,2523.7,2523.4,0.55]
[1730482188366,7.9251,2523.7,2523.4,0.55]
[1730482188783,3.96255,2523.7,2523.4,0.55]
[1730482189772,3.96259,2523.6,2523.4,0.55]
[1730482190476,3.96255,2523.7,2523.4,0.55]
[1730482191076,7.92508,2523.7,2523.4,0.55]
[1730482191276,3.96253,2523.7,2523.4,0.55]
[1730482191768,3.96253,2523.7,2523.1,0.05944728]
[1730482191769,3.96308,2523.3,2523.1,0.83824728]
[1730482192012,3.96308,2523.3,2523.1,0.05944728]
[1730482192601,7.92626,2523.3,2523.1,0.05944728]
[1730482192908,3.96322,2523.2,2523.1,0.05944728]
[1730482194294,4.437433,2523.7,2523.1,0.05944728]
[1730482194495,3.96281,2523.5,2523.2,0.55]
[1730482194695,6.96259,2523.6,2523.2,4.5132]
[1730482195098,6.96259,2523.6,2523.2,0.55]
[1730482195099,10.92533,2523.6,2523.2,0.55]
[1730482195413,3.96276,2523.5,2523.2,0.55]
[1730482198102,3.96297,2523.4,2523.2,0.55]
[1730482198306,3.96306,2523.3,2523.2,0.55]
[1730482198610,3.0,2523.6,2523.2,0.55]
[1730482198611,6.96273,2523.6,2523.2,0.55]
[1730482198812,3.96286,2523.5,2523.2,0.55]
[1730482199189,3.963,2523.4,2523.2,0.55]
[1730482199394,3.96286,2523.5,2523.2,0.55]
[1730482199719,3.96297,2523.4,2523.2,0.55]
[1730482200624,1.59499,2524.0,2523.3,0.7586]
[1730482200797,3.9627,2523.6,2523.4,0.55]
[1730482200979,4.76457,2524.0,2523.4,0.55]
[1730482200980,0.8026,2524.0,2523.4,0.55]
[1730482201178,3.96219,2523.9,2523.4,4.51288]
[1730482201376,3.96186,2524.1,2523.7,0.55]
[1730482201820,3.96186,2524.1,2523.7,1.09172931]
[1730482202126,3.96178,2524.2,2523.6,4.86729314]
[1730482202127,3.96227,2523.8,2523.6,0.8256]
[1730482202316,3.96275,2523.5,2523.3,0.8021]
[1730482202518,3.9629,2523.4,2523.3,0.55]
[1730482202689,3.9631,2523.3,2523.0,0.8021]
[1730482203527,3.9629,2523.4,2523.0,0.8021]
[1730482204298,3.96322,2523.2,2522.8,0.7831]
[1730482204849,3.964,2522.7,2522.5,0.06891689]
[1730482205425,3.96416,2522.6,2522.5,0.06891689]
[1730482205628,3.96441,2522.5,2522.1,4.74164]
[1730482205815,4.73162,2522.7,2522.2,3.96477]
[1730482206021,3.96402,2522.7,2522.2,3.96477]
[1730482206397,3.96416,2522.6,2522.1,1.70938683]
[1730482206595,7.92843,2522.6,2522.1,5.67424683]
[1730482206795,3.96455,2522.4,2522.1,0.7767]
[1730482207437,0.7793,2522.6,2522.1,4.74155]
[1730482207438,3.96425,2522.6,2522.1,4.74155]
[1730482207996,3.96426,2522.6,2522.3,0.55]
[1730482208336,3.96402,2522.7,2522.2,0.55]
[1730482208630,3.96402,2522.7,2522.2,4.51468]
[1730482208810,3.96416,2522.6,2522.2,0.55]
[1730482209210,3.96402,2522.7,2522.2,4.51476]
[1730482209611,3.96423,2522.6,2522.2,0.55]
[1730482210220,3.96402,2522.7,2522.2,0.55]
[1730482210438,3.96402,2522.7,2522.2,5.043875]
[1730482210644,3.96426,2522.6,2522.2,1.079155]
[1730482211005,3.96435,2522.5,2522.2,1.079155]
[1730482211705,3.96402,2522.7,2522.2,1.079155]
[1730482211910,3.0,2523.0,2522.4,0.7871]
[1730482212141,3.96392,2522.8,2522.4,0.7871]
[1730482212410,8.40448187,2523.2,2522.6,4.51401]
[1730482212411,3.96347,2523.1,2522.6,4.51401]
[1730482213038,4.72715,2523.2,2522.4,4.75146]
[1730482213039,3.96357,2523.0,2522.5,0.55]
[1730482213546,3.96386,2522.8,2522.5,0.55]
[1730482213746,3.96404,2522.7,2522.5,0.55]
[1730482214441,3.96416,2522.6,2522.5,0.55]
[1730482214603,0.472737,2523.0,2522.0,4.72082]
[1730482214604,3.96435,2522.5,2522.0,4.72082]
[1730482214800,3.96409,2522.7,2522.1,0.55]
[1730482215035,3.96409,2522.7,2522.3,0.55]
[1730482215230,3.0,2523.2,2522.8,0.55]
[1730482215440,3.96243,2523.7,2523.0,4.51342]
[1730482215619,0.8115,2523.8,2523.1,0.8219]
[1730482215833,0.8115,2523.8,2522.9,3.96368]
[1730482215834,3.9632,2523.3,2522.9,1.3719]
[1730482216018,0.7768,2523.2,2522.6,0.762]
[1730482216205,3.96376,2522.9,2522.6,0.762]
[1730482216412,3.96392,2522.8,2522.6,0.762]
[1730482216649,0.7768,2523.2,2522.6,0.762]
[1730482216944,3.7768,2523.2,2522.6,0.762]
[1730482217242,3.96395,2522.8,2522.6,0.762]
[1730482218444,3.96373,2522.9,2522.6,0.762]
[1730482219233,3.96369,2522.9,2522.3,0.8178]
[1730482219555,0.417312,2523.1,2522.2,3.96477]
[1730482219556,3.96402,2522.7,2522.2,3.96477]
[1730482219707,3.96402,2522.7,2522.2,4.45095653]
[1730482219905,3.964,2522.7,2522.2,4.45095653]
[1730482220355,3.964,2522.7,2522.3,3.96463]
[1730482221043,3.964,2522.7,2522.2,4.45095653]
[1730482221250,3.964,2522.7,2522.3,0.55]
[1730482221612,3.96423,2522.6,2522.3,0.55]
[1730482221962,1.173743,2522.6,2521.9,0.7917]
[1730482222108,3.96501,2522.1,2521.9,0.7917]
[1730482222313,3.96481,2522.2,2521.8,0.06884558]
[1730482222509,3.96473,2522.3,2521.8,4.03425558]
[1730482223149,3.96449,2522.4,2521.9,3.96515]
[1730482223513,3.96449,2522.4,2522.0,0.55]
[1730482224139,3.96475,2522.3,2521.7,4.75726]
[1730482224455,3.9648,2522.2,2521.8,4.51535]
[1730482225456,3.96495,2522.1,2521.8,0.55]
[1730482225743,3.96527,2521.9,2521.5,3.96576]
[1730482226947,3.96511,2522.0,2521.5,3.96576]
[1730482227170,4.77961,2522.2,2521.6,4.59491415]
[1730482227320,3.96491,2522.2,2521.7,4.74879]
[1730482228260,3.9654,2521.9,2521.5,0.8162]
[1730482228442,6.96463,2522.3,2521.6,3.96566]
[1730482228443,3.96482,2522.2,2521.6,3.96566]
[1730482228744,3.0,2522.3,2521.5,4.78209]
[1730482228745,3.96511,2522.0,2521.5,4.78209]
[1730482228923,3.96528,2521.9,2521.5,4.78201]
[1730482229551,3.96528,2521.9,2521.5,0.8162]
[1730482229985,3.96542,2521.8,2521.5,0.8162]
[1730482230283,3.96542,2521.8,2521.4,0.05947716]
[1730482230284,3.96528,2521.9,2521.4,0.05947716]
[1730482230483,3.96542,2521.8,2521.4,0.05947716]
[1730482231091,0.479818,2521.9,2521.4,0.05947716]
[1730482231250,3.96528,2521.9,2521.5,3.96587]
[1730482231646,8.21043841,2522.3,2521.7,0.7728]
[1730482231647,6.96496,2522.1,2521.7,0.7728]
[1730482231877,6.96496,2522.1,2521.7,4.73827]
[1730482231878,3.96496,2522.1,2521.7,4.73827]
[1730482232369,3.9644,2522.5,2521.9,3.96523]
[1730482232370,3.0,2522.4,2521.9,3.96523]
[1730482232588,3.96454,2522.4,2521.9,3.96523]
[1730482232787,3.96449,2522.4,2522.1,0.7728]
[1730482232987,3.96476,2522.3,2521.8,5.28822]
[1730482233192,3.96497,2522.1,2521.8,0.7728]
[1730482233561,3.96512,2522.0,2521.8,0.7728]
[1730482233768,3.96526,2521.9,2521.5,3.96585]
[1730482234676,3.96526,2521.9,2521.4,4.81840716]
[1730482234874,3.96526,2521.9,2521.5,3.96588]
[1730482235084,3.96505,2522.1,2521.6,3.96571]
[1730482235293,3.96533,2521.9,2521.4,0.7929]
[1730482235497,0.756,2521.9,2521.4,0.7929]
[1730482235803,3.756,2521.9,2521.2,0.7882]
[1730482236103,3.96588,2521.6,2521.2,0.7882]
[1730482236289,4.74095774,2521.6,2521.2,0.7882]
[1730482236483,3.96588,2521.6,2521.2,4.75454]
[1730482238363,3.96588,2521.6,2521.2,0.7882]
[1730482238563,3.96588,2521.6,2521.2,4.75455]
[1730482239097,3.96596,2521.5,2521.2,0.7882]
[1730482239618,3.96575,2521.6,2521.2,0.7882]
[1730482239771,3.96595,2521.5,2521.2,0.7882]
[1730482240190,1.8849648,2521.4,2521.2,4.75448]
[1730482240504,6.96533,2521.9,2521.3,0.55]
[1730482240798,3.9651,2522.0,2521.5,0.7849]
[1730482240965,3.9651,2522.0,2521.5,4.75072]
[1730482241169,3.96533,2521.9,2521.5,4.75072]
[1730482241370,3.96543,2521.8,2521.5,0.7849]
[1730482242616,3.96543,2521.8,2521.3,0.8176]
[1730482242617,3.96574,2521.6,2521.3,0.8176]
[1730482243011,3.96574,2521.6,2521.2,3.96631]
[1730482243012,0.793063,2521.8,2521.0,1.3521]
[1730482243216,3.96612,2521.4,2521.0,0.8021]
[1730482243517,3.96628,2521.3,2521.0,0.8021]
[1730482244064,3.96637,2521.2,2520.8,4.83797898]
[1730482244305,0.7703,2521.1,2520.5,0.8021]
[1730482244470,3.96677,2521.0,2520.5,0.87100851]
[1730482244667,3.96677,2521.0,2520.5,0.8021]
[1730482244905,3.96677,2521.0,2520.6,3.96729]
[1730482245773,3.8703,2521.1,2520.6,3.96729]
[1730482245997,3.9667,2521.0,2520.6,3.96729]
[1730482246205,4.83682,2521.1,2520.5,4.76954]
[1730482246416,3.96675,2521.0,2520.6,3.9673]
[1730482246905,0.8703,2521.1,2520.5,0.8021]
[1730482247082,3.96678,2521.0,2520.5,4.76953]
[1730482247511,7.93358,2521.0,2520.5,4.76953]
[1730482247808,3.96678,2521.0,2520.5,4.76953]
[1730482248169,0.8703,2521.1,2520.6,3.96726]
[1730482248370,3.96679,2521.0,2520.5,4.76953]
[1730482248584,3.96679,2521.0,2520.5,8.73691]
[1730482249217,3.96686,2520.9,2520.5,4.76948]
[1730482249939,0.7988,2520.7,2520.3,0.1233121]
[1730482250285,3.96762,2520.4,2520.3,0.1233121]
[1730482250518,7.93512,2520.5,2520.3,0.1233121]
[1730482250827,3.96762,2520.4,2520.3,0.1233121]
[1730482251337,3.96737,2520.6,2520.3,0.1233121]
[1730482251687,0.7988,2520.7,2520.3,0.1233121]
[1730482251891,3.96706,2520.8,2520.3,4.8896721]
[1730482252089,3.0,2520.7,2520.3,5.77541931]
[1730482252403,3.9674,2520.6,2520.3,0.1233121]
[1730482252711,3.96749,2520.5,2520.3,0.1233121]
[1730482253105,6.96725,2520.7,2520.3,0.1233121]
[1730482253304,3.96731,2520.6,2520.3,0.1233121]
[1730482253526,4.79033,2520.9,2520.4,3.9675]
[1730482253705,3.96684,2520.9,2520.4,1.21768121]
[1730482254027,3.0,2521.0,2520.5,7.93477]
[1730482254187,3.0,2521.0,2520.5,3.96737]
[1730482254387,3.96685,2520.9,2520.5,3.96737]
[1730482254585,0.1,2521.1,2520.5,3.96746]
[1730482254790,0.1,2521.1,2520.5,4.50623997]
[1730482255289,3.96677,2521.0,2520.5,0.53877997]
[1730482255525,3.96692,2520.9,2520.5,3.96746]
[1730482255684,7.93359,2521.0,2520.5,3.96746]
[1730482255888,3.96689,2520.9,2520.5,3.96746]
[1730482256298,3.96677,2521.0,2520.4,0.8086]
[1730482256299,3.96724,2520.7,2520.4,0.8086]
[1730482256508,3.96696,2520.9,2520.4,0.8086]
[1730482256809,3.96727,2520.7,2520.4,0.8086]
[1730482257213,3.96746,2520.5,2520.3,0.1233121]
[1730482258422,4.76374,2520.7,2520.3,0.1233121]
[1730482258737,3.96739,2520.6,2520.3,0.1233121]
[1730482259235,3.96762,2520.4,2520.3,0.1233121]
[1730482260601,4.71972,2520.4,2520.3,0.1233121]
[1730482260809,7.71972,2520.4,2520.3,0.1233121]
[1730482266666,3.96935,2519.3,2519.2,0.06892883]
[1730482266869,3.96966,2519.2,2518.9,0.82613681]
[1730482267169,3.96968,2519.1,2518.9,0.05953681]
[1730482267355,3.96991,2519.0,2518.6,0.7894]
[1730482267669,3.0,2519.1,2518.7,3.97022]
[1730482267827,3.96975,2519.1,2518.6,4.75984]
[1730482268328,3.96975,2519.1,2518.6,0.7894]
[1730482268559,0.8248,2518.9,2518.5,2.49788525]
[1730482268869,3.97031,2518.7,2518.5,2.49788525]
[1730482269239,4.79491,2518.9,2518.5,2.49788525]
[1730482269440,3.97011,2518.9,2518.5,2.49788525]
[1730482269653,3.97011,2518.9,2518.5,6.46848525]
[1730482269867,3.97023,2518.8,2518.5,2.49788525]
[1730482270167,3.97023,2518.8,2518.3,4.79213]
[1730482270371,3.97007,2518.9,2518.4,3.97069]
[1730482270665,3.97007,2518.9,2518.5,3.97051]
[1730482270666,6.97001,2518.9,2518.5,3.97051]
[1730482270830,6.97001,2518.9,2518.4,3.97075]
[1730482271026,3.0,2518.9,2518.5,3.97054]
[1730482271258,3.0,2518.9,2518.3,0.8213]
[1730482271259,3.97036,2518.7,2518.3,0.8213]
[1730482271862,3.97064,2518.5,2518.1,3.97117]
[1730482272069,3.97064,2518.5,2518.0,0.16888338]